[Event "Sunway Sitges Chess Festival"]
[Date "2024.12.21"]
[White "Colomer Gomez, Jordi"]
[Black "Woozeer, Seth"]
[WhiteElo "1981"]
[BlackElo "1771"]
[Round "9.40"]
[Result "1-0"]
[TimeControl "40/5400+30:1800+30"]

1. e4 {[%clk 1:29:58]} 1... c5 {[%clk 1:30:52]} 2. Nc3 {[%clk 1:30:23]} 2... Nc6
{[%clk 1:31:13]} 3. Bb5 {[%clk 1:30:45]} 3... Nd4 {[%clk 1:31:30]} 4. Nf3 {[%clk
1:31:04]} 4... a6 {[%clk 1:31:38]} 5. Bd3 {[%clk 1:31:17]} 5... g6 {[%clk
1:31:17]} 6. O-O {[%clk 1:30:34]} 6... Bg7 {[%clk 1:31:25]} 7. Re1 {[%clk
1:29:59]} 7... Nh6 {[%clk 1:31:40]} 8. Rb1 {[%clk 1:28:07]} 8... d6 {[%clk
1:24:56]} 9. Nxd4 {[%clk 1:27:46]} 9... cxd4 {[%clk 1:25:12]} 10. Ne2 {[%clk
1:28:37]} 10... O-O {[%clk 1:24:12]} 11. c3 {[%clk 1:28:21]} 11... dxc3 {[%clk
1:23:37]} 12. dxc3 {[%clk 1:22:38]} 12... e6 {[%clk 1:22:14]} 13. Nf4 {[%clk
1:20:07]} 13... b5 {[%clk 1:18:00]} 14. Qf3 {[%clk 1:14:39]} 14... Bb7 {[%clk
1:15:00]} 15. Qh3 {[%clk 1:12:12]} 15... Bc8 {[%clk 0:58:04]} 16. Qf3 {[%clk
1:06:13]} 16... Bb7 {[%clk 0:58:02]} 17. Qh3 {[%clk 1:03:06]} 17... Bc8 {[%clk
0:57:48]} 18. Qg3 {[%clk 1:02:27]} 18... Qf6 {[%clk 0:48:53]} 19. Nh3 {[%clk
0:59:30]} 19... e5 {[%clk 0:48:46]} 20. Bc2 {[%clk 0:38:03]} 20... Qe7 {[%clk
0:37:13]} 21. Bb3 {[%clk 0:42:33]} 21... Be6 {[%clk 0:36:41]} 22. Bd5 {[%clk
0:32:53]} 22... Bxd5 {[%clk 0:37:00]} 23. exd5 {[%clk 0:33:21]} 23... Nf5 {[%clk
0:32:27]} 24. Qd3 {[%clk 0:30:04]} 24... Qb7 {[%clk 0:29:56]} 25. b3 {[%clk
0:23:53]} 25... Rac8 {[%clk 0:24:53]} 26. Ng5 {[%clk 0:22:54]} 26... Ne7 {[%clk
0:22:13]} 27. Rd1 {[%clk 0:21:22]} 27... Qc7 {[%clk 0:14:59]} 28. Ba3 {[%clk
0:12:34]} 28... Rfd8 {[%clk 0:14:59]} 29. Qf3 {[%clk 0:12:57]} 29... Nf5 {[%clk
0:15:28]} 30. g4 {[%clk 0:12:53]} 30... Nh6 {[%clk 0:15:56]} 31. Rbc1 {[%clk
0:12:52]} 31... Qa5 {[%clk 0:15:10]} 32. Bb4 {[%clk 0:12:34]} 32... Qb6 {[%clk
0:12:31]} 33. Ba3 {[%clk 0:10:49]} 33... a5 {[%clk 0:11:45]} 34. Bb2 {[%clk
0:11:16]} 34... a4 {[%clk 0:11:45]} 35. Ba3 {[%clk 0:11:04]} 35... axb3 {[%clk
0:11:41]} 36. axb3 {[%clk 0:11:30]} 36... Qa7 {[%clk 0:09:58]} 37. Bb4 {[%clk
0:11:49]} 37... Qe7 {[%clk 0:07:50]} 38. Ne4 {[%clk 0:10:07]} 38... f5 {[%clk
0:07:12]} 39. gxf5 {[%clk 0:10:00]} 39... gxf5 {[%clk 0:07:41]} 40. Ng3 {[%clk
0:39:00]} 40... Qg5 {[%clk 0:31:38]} 41. Kh1 {[%clk 0:34:24]} 41... e4 {[%clk
0:30:01]} 42. Qh5 {[%clk 0:34:13]} 42... Qxh5 {[%clk 0:30:24]} 43. Nxh5 {[%clk
0:34:41]} 43... Ng4 {[%clk 0:30:34]} 44. Kg2 {[%clk 0:30:02]} 44... Ne5 {[%clk
0:28:46]} 45. Ra1 {[%clk 0:25:23]} 45... Rd7 {[%clk 0:18:30]} 46. Ra6 {[%clk
0:20:32]} 46... Nd3 {[%clk 0:14:34]} 47. Ng3 {[%clk 0:11:05]} 47... Nf4+ {[%clk
0:08:14]} 48. Kf1 {[%clk 0:11:19]} 48... Bxc3 {[%clk 0:08:35]} 49. Rc1 {[%clk
0:09:38]} 49... Nxd5 {[%clk 0:07:30]} 50. Bxd6 {[%clk 0:07:49]} 50... Rcd8
{[%clk 0:06:14]} 51. Nxf5 {[%clk 0:07:35]} 51... Bb4 {[%clk 0:04:08]} 52. Be5
{[%clk 0:06:58]} 52... Bd2 {[%clk 0:03:18]} 53. Rd1 {[%clk 0:06:45]} 53... Nc3
{[%clk 0:01:28]} 54. Rda1 {[%clk 0:02:36]} 54... Nd5 {[%clk 0:00:56]} 55. Ra7
{[%clk 0:02:28]} 55... Bf4 {[%clk 0:00:44]} 56. Bb2 {[%clk 0:02:05]} 56... Bd2
{[%clk 0:00:50]} 57. Rxd7 {[%clk 0:01:25]} 57... Rxd7 {[%clk 0:01:19]} 58. Rd1
{[%clk 0:01:32]} 58... Bf4 {[%clk 0:01:33]} 59. Rxd5 {[%clk 0:01:46]} 59... Rxd5
{[%clk 0:01:57]} 60. Ne7+ {[%clk 0:02:15]} 60... Kf7 {[%clk 0:02:26]} 61. Nxd5
{[%clk 0:02:41]} 61... Bxh2 {[%clk 0:02:54]} 62. Bd4 {[%clk 0:01:49]} 62... Bd6
{[%clk 0:02:47]} 63. Nc3 {[%clk 0:02:07]} 63... b4 {[%clk 0:03:13]} 64. Nxe4
{[%clk 0:02:28]} 64... Be7 {[%clk 0:03:16]} 65. Bc5 {[%clk 0:02:33]} 65... Bxc5
{[%clk 0:03:45]} 66. Nxc5 {[%clk 0:03:02]} 66... Ke7 {[%clk 0:03:50]} 67. Nd3
{[%clk 0:03:24]} 67... Kd6 {[%clk 0:04:02]} 68. Nxb4 {[%clk 0:03:47]} 68... Kc5
{[%clk 0:04:20]} 69. Nc2 {[%clk 0:03:55]} 1-0

[Variant "Standard"]
[Site "Europe Echecs"]

[Event "Sunway Sitges Chess Festival"]
[Date "2024.12.21"]
[White "Fernandez Muixi, Francesc"]
[Black "Schulman, Julia"]
[WhiteElo "1926"]
[BlackElo "1852"]
[Round "9.41"]
[Result "1/2-1/2"]
[TimeControl "40/5400+30:1800+30"]

1. e4 {[%clk 1:28:08]} 1... c5 {[%clk 1:30:51]} 2. Nf3 {[%clk 1:28:10]} 2... d6
{[%clk 1:31:13]} 3. d4 {[%clk 1:28:22]} 3... cxd4 {[%clk 1:31:33]} 4. Nxd4
{[%clk 1:28:45]} 4... Nf6 {[%clk 1:31:54]} 5. Nc3 {[%clk 1:29:10]} 5... g6
{[%clk 1:32:04]} 6. Be3 {[%clk 1:29:23]} 6... Bg7 {[%clk 1:32:19]} 7. f3 {[%clk
1:29:45]} 7... Nc6 {[%clk 1:32:01]} 8. Bc4 {[%clk 1:27:41]} 8... O-O {[%clk
1:32:08]} 9. Qd2 {[%clk 1:28:04]} 9... Bd7 {[%clk 1:32:18]} 10. O-O-O {[%clk
1:28:13]} 10... Rb8 {[%clk 1:32:02]} 11. Bb3 {[%clk 1:24:42]} 11... a5 {[%clk
1:28:25]} 12. a4 {[%clk 1:18:05]} 12... Nxd4 {[%clk 1:15:35]} 13. Bxd4 {[%clk
1:18:29]} 13... b5 {[%clk 0:49:31]} 14. axb5 {[%clk 0:54:12]} 14... Bxb5 {[%clk
0:45:13]} 15. Nxb5 {[%clk 0:46:57]} 15... Rxb5 {[%clk 0:45:38]} 16. Ba4 {[%clk
0:44:23]} 16... Rb4 {[%clk 0:43:35]} 17. b3 {[%clk 0:42:55]} 17... Nxe4 {[%clk
0:35:43]} 18. fxe4 {[%clk 0:41:10]} 18... Rxd4 {[%clk 0:34:49]} 19. Qe3 {[%clk
0:37:15]} 19... Rb4 {[%clk 0:32:26]} 20. c3 {[%clk 0:35:15]} 20... Qc7 {[%clk
0:29:56]} 21. Rd3 {[%clk 0:34:40]} 21... Rc8 {[%clk 0:28:22]} 22. Kd2 {[%clk
0:34:30]} 22... Rbb8 {[%clk 0:28:11]} 23. c4 {[%clk 0:34:06]} 23... Be5 {[%clk
0:27:16]} 24. Ke2 {[%clk 0:33:40]} 24... Rf8 {[%clk 0:22:24]} 25. h4 {[%clk
0:31:37]} 25... Qc8 {[%clk 0:21:03]} 26. h5 {[%clk 0:31:05]} 26... Qg4+ {[%clk
0:20:02]} 27. Qf3 {[%clk 0:31:32]} 27... Qg5 {[%clk 0:18:59]} 28. Rd5 {[%clk
0:26:43]} 28... Ra8 {[%clk 0:17:39]} 29. Rd3 {[%clk 0:25:31]} 29... e6 {[%clk
0:16:52]} 30. Kd1 {[%clk 0:23:37]} 30... Rab8 {[%clk 0:15:33]} 31. Qh3 {[%clk
0:22:00]} 31... Qxh5+ {[%clk 0:07:30]} 32. Qxh5 {[%clk 0:22:23]} 32... gxh5
{[%clk 0:07:58]} 33. Rxh5 {[%clk 0:22:41]} 33... f5 {[%clk 0:04:27]} 34. exf5
{[%clk 0:22:50]} 34... Rxf5 {[%clk 0:03:49]} 35. Rxf5 {[%clk 0:21:55]} 35...
exf5 {[%clk 0:04:17]} 36. Ke2 {[%clk 0:21:52]} 36... Kf7 {[%clk 0:01:43]} 37.
Bc6 {[%clk 0:21:40]} 37... Rb6 {[%clk 0:01:45]} 38. Bd5+ {[%clk 0:21:29]} 38...
Kf6 {[%clk 0:02:05]} 39. Rh3 {[%clk 0:21:00]} 39... Kg6 {[%clk 0:01:45]} 40. Bf3
{[%clk 0:47:50]} 40... h6 {[%clk 0:31:40]} 41. Bd5 {[%clk 0:47:57]} 41... Ra6
{[%clk 0:28:05]} 42. Rf3 {[%clk 0:43:40]} 42... a4 {[%clk 0:25:38]} 43. bxa4
{[%clk 0:44:03]} 43... Rxa4 {[%clk 0:25:49]} 44. Rd3 {[%clk 0:44:12]} 44... Kg5
{[%clk 0:22:51]} 45. Rd2 {[%clk 0:38:46]} 45... h5 {[%clk 0:21:37]} 46. Rd1
{[%clk 0:36:04]} 46... h4 {[%clk 0:21:20]} 47. Rd3 {[%clk 0:35:46]} 47... Bg3
{[%clk 0:16:39]} 48. Rd2 {[%clk 0:35:43]} 48... Ra1 {[%clk 0:15:48]} 49. Rd1
{[%clk 0:35:49]} 49... Ra7 {[%clk 0:15:12]} 50. Rd3 {[%clk 0:35:26]} 50... Re7+
{[%clk 0:11:48]} 51. Re3 {[%clk 0:35:47]} 51... Re5 {[%clk 0:11:07]} 52. Kf3
{[%clk 0:33:31]} 52... Kf6 {[%clk 0:09:05]} 53. Re2 {[%clk 0:32:22]} 53... Kg5
{[%clk 0:06:47]} 54. Re3 {[%clk 0:32:22]} 54... Bf4 {[%clk 0:06:23]} 55. Re2
{[%clk 0:32:38]} 55... Rxe2 {[%clk 0:03:56]} 56. Kxe2 {[%clk 0:33:03]} 56... Kg4
{[%clk 0:04:11]} 57. Bb7 {[%clk 0:33:08]} 57... Kg3 {[%clk 0:03:06]} 58. Bd5
{[%clk 0:32:56]} 58... Be5 {[%clk 0:03:02]} 59. Bb7 {[%clk 0:32:49]} 59... h3
{[%clk 0:03:07]} 60. gxh3 {[%clk 0:33:13]} 60... Kxh3 {[%clk 0:03:33]} 61. Kf3
{[%clk 0:33:35]} 61... Kh4 {[%clk 0:03:29]} 62. Bd5 {[%clk 0:33:37]} 62... Kg5
{[%clk 0:03:43]} 63. Bb7 {[%clk 0:33:53]} 63... Kf6 {[%clk 0:03:31]} 64. Bd5
{[%clk 0:33:53]} 64... Ke7 {[%clk 0:03:39]} 65. Bc6 {[%clk 0:34:10]} 65... Kd8
{[%clk 0:03:54]} 66. Bd5 {[%clk 0:34:28]} 66... Kc7 {[%clk 0:04:14]} 67. Be6
{[%clk 0:34:38]} 67... f4 {[%clk 0:04:34]} 68. Bg8 {[%clk 0:34:48]} 68... Kc6
{[%clk 0:04:43]} 69. Bd5+ {[%clk 0:35:05]} 69... Kc5 {[%clk 0:05:04]} 70. Bg8
{[%clk 0:35:28]} 70... Kc6 {[%clk 0:04:26]} 71. Bd5+ {[%clk 0:35:46]} 1/2-1/2

[Variant "Standard"]
[Site "Europe Echecs"]

[Event "Sunway Sitges Chess Festival"]
[Date "2024.12.21"]
[White "Koridze, Lile"]
[Black "Maloberti, David"]
[WhiteElo "2107"]
[BlackElo "1982"]
[Round "9.42"]
[Result "1-0"]
[TimeControl "40/5400+30:1800+30"]

1. d4 {[%clk 1:30:49]} 1... Nf6 {[%clk 1:30:53]} 2. c4 {[%clk 1:31:16]} 2... g6
{[%clk 1:31:18]} 3. Nc3 {[%clk 1:31:43]} 3... Bg7 {[%clk 1:31:42]} 4. e4 {[%clk
1:32:10]} 4... d6 {[%clk 1:32:07]} 5. Nf3 {[%clk 1:32:27]} 5... O-O {[%clk
1:32:22]} 6. Be2 {[%clk 1:32:53]} 6... e5 {[%clk 1:30:14]} 7. Be3 {[%clk
1:30:38]} 7... Ng4 {[%clk 1:30:45]} 8. Bg5 {[%clk 1:30:39]} 8... f6 {[%clk
1:31:09]} 9. Bc1 {[%clk 1:26:45]} 9... h5 {[%clk 1:27:59]} 10. O-O {[%clk
1:26:04]} 10... Nc6 {[%clk 1:27:20]} 11. h3 {[%clk 1:23:35]} 11... Nh6 {[%clk
1:27:40]} 12. Be3 {[%clk 1:14:15]} 12... Nf7 {[%clk 1:19:36]} 13. Nd5 {[%clk
0:47:33]} 13... f5 {[%clk 1:03:11]} 14. exf5 {[%clk 1:05:44]} 14... Bxf5 {[%clk
1:01:20]} 15. Qd2 {[%clk 1:03:07]} 15... Qd7 {[%clk 0:56:08]} 16. dxe5 {[%clk
0:57:49]} 16... Nfxe5 {[%clk 0:52:40]} 17. Ng5 {[%clk 0:41:43]} 17... b6 {[%clk
0:42:36]} 18. Nf4 {[%clk 0:47:21]} 18... Rae8 {[%clk 0:40:05]} 19. Qd5+ {[%clk
0:36:53]} 19... Kh8 {[%clk 0:40:23]} 20. g4 {[%clk 0:35:51]} 20... Qe7 {[%clk
0:35:50]} 21. Ng2 {[%clk 0:33:53]} 21... hxg4 {[%clk 0:33:21]} 22. hxg4 {[%clk
0:34:16]} 22... Bxg4 {[%clk 0:25:29]} 23. Bxg4 {[%clk 0:25:50]} 23... Nxg4
{[%clk 0:14:53]} 24. Rae1 {[%clk 0:18:02]} 24... Nb4 {[%clk 0:22:30]} 25. Qd2
{[%clk 0:14:21]} 25... Qe5 {[%clk 0:17:39]} 26. Nf7+ {[%clk 0:10:22]} 26... Rxf7
{[%clk 0:19:53]} 27. Bf4 {[%clk 0:10:50]} 27... Qxb2 {[%clk 0:17:01]} 28. Rxe8+
{[%clk 0:11:06]} 28... Kh7 {[%clk 0:17:13]} 29. Qd1 {[%clk 0:03:34]} 29... Ne5
{[%clk 0:17:13]} 30. Bxe5 {[%clk 0:03:46]} 30... dxe5 {[%clk 0:15:09]} 31. Qg4
{[%clk 0:03:30]} 31... Qd2 {[%clk 0:10:42]} 32. Ne3 {[%clk 0:02:59]} 32... Nd3
{[%clk 0:11:03]} 33. Qh3+ {[%clk 0:01:27]} 33... Bh6 {[%clk 0:11:21]} 34. Ng4
{[%clk 0:01:30]} 34... Qg5 {[%clk 0:11:03]} 35. f3 {[%clk 0:01:13]} 35... Nf4
{[%clk 0:10:58]} 36. Qh2 {[%clk 0:01:14]} 36... Nd3 {[%clk 0:07:46]} 37. Kh1
{[%clk 0:00:46]} 37... Qh5 {[%clk 0:08:01]} 38. Qxh5 {[%clk 0:00:54]} 38... gxh5
{[%clk 0:08:24]} 39. Nxe5 {[%clk 0:01:17]} 39... Nxe5 {[%clk 0:08:01]} 40. Rxe5
{[%clk 0:31:43]} 40... h4 {[%clk 0:37:33]} 41. Kg2 {[%clk 0:26:41]} 41... Kg6
{[%clk 0:34:51]} 42. Re6+ {[%clk 0:23:05]} 42... Kh5 {[%clk 0:34:07]} 43. Rfe1
{[%clk 0:23:03]} 43... Bf4 {[%clk 0:31:56]} 44. Re7 {[%clk 0:22:13]} 44... Rf6
{[%clk 0:30:06]} 45. R1e6 {[%clk 0:20:44]} 45... Rf5 {[%clk 0:28:06]} 46. Rh7+
{[%clk 0:17:50]} 46... Kg5 {[%clk 0:25:24]} 47. Rg7+ {[%clk 0:13:56]} 47... Kh5
{[%clk 0:31:11]} 48. Re8 {[%clk 0:11:17]} 48... Rc5 {[%clk 0:29:37]} 49. Rh8+
{[%clk 0:10:56]} 49... Bh6 {[%clk 0:28:29]} 50. Rg4 {[%clk 0:06:44]} 50... Rf5
{[%clk 0:27:41]} 51. Rh7 {[%clk 0:08:01]} 51... c5 {[%clk 0:27:58]} 52. Rxa7
{[%clk 0:05:36]} 52... h3+ {[%clk 0:28:23]} 53. Kg3 {[%clk 0:05:40]} 53... h2
{[%clk 0:28:47]} 54. Rh4+ {[%clk 0:05:30]} 54... Kg6 {[%clk 0:29:11]} 55. Kxh2
{[%clk 0:04:23]} 55... Rxf3 {[%clk 0:29:35]} 56. Kg2 {[%clk 0:03:21]} 56... Rf6
{[%clk 0:27:53]} 57. Re4 {[%clk 0:03:40]} 57... Bd2 {[%clk 0:27:32]} 58. Rae7
{[%clk 0:03:51]} 1-0

[Variant "Standard"]
[Site "Europe Echecs"]

[Event "Sunway Sitges Chess Festival"]
[Date "2024.12.21"]
[White "Sayce, Hannah"]
[Black "Beisteiner, Joachim"]
[WhiteElo "1821"]
[BlackElo "2161"]
[Round "9.43"]
[Result "0-1"]
[TimeControl "40/5400+30:1800+30"]

1. e4 {[%clk 1:30:52]} 1... e5 {[%clk 1:30:50]} 2. Nf3 {[%clk 1:31:16]} 2... Nc6
{[%clk 1:31:06]} 3. Bb5 {[%clk 1:31:38]} 3... a6 {[%clk 1:31:20]} 4. Ba4 {[%clk
1:32:01]} 4... Nf6 {[%clk 1:31:33]} 5. d3 {[%clk 1:32:11]} 5... Bc5 {[%clk
1:31:38]} 6. O-O {[%clk 1:32:14]} 6... d6 {[%clk 1:31:17]} 7. c3 {[%clk
1:31:52]} 7... Ba7 {[%clk 1:30:52]} 8. Bg5 {[%clk 1:30:47]} 8... h6 {[%clk
1:28:08]} 9. Bh4 {[%clk 1:30:05]} 9... O-O {[%clk 1:26:03]} 10. Re1 {[%clk
1:26:26]} 10... g5 {[%clk 1:25:26]} 11. Bg3 {[%clk 1:26:01]} 11... Ne7 {[%clk
1:25:08]} 12. d4 {[%clk 1:23:04]} 12... Ng6 {[%clk 1:24:15]} 13. dxe5 {[%clk
1:18:12]} 13... dxe5 {[%clk 1:24:02]} 14. Nxe5 {[%clk 1:12:50]} 14... Nxe5
{[%clk 1:24:18]} 15. Qxd8 {[%clk 1:12:32]} 15... Rxd8 {[%clk 1:24:40]} 16. Bxe5
{[%clk 1:12:49]} 16... Bxf2+ {[%clk 1:24:32]} 17. Kxf2 {[%clk 1:09:42]} 17...
Ng4+ {[%clk 1:24:55]} 18. Kg1 {[%clk 1:08:26]} 18... Nxe5 {[%clk 1:25:15]} 19.
Bc2 {[%clk 0:55:28]} 19... Bg4 {[%clk 1:16:44]} 20. Rf1 {[%clk 0:50:52]} 20...
Kg7 {[%clk 1:11:41]} 21. Na3 {[%clk 0:48:10]} 21... Rd2 {[%clk 1:05:49]} 22. h3
{[%clk 0:44:39]} 22... Be6 {[%clk 1:02:40]} 23. b3 {[%clk 0:40:11]} 23... Rad8
{[%clk 0:57:51]} 24. Rfd1 {[%clk 0:37:16]} 24... Rxd1+ {[%clk 0:53:02]} 25. Rxd1
{[%clk 0:37:36]} 25... Rxd1+ {[%clk 0:53:02]} 26. Bxd1 {[%clk 0:38:00]} 26...
Nd3 {[%clk 0:53:06]} 27. Nc2 {[%clk 0:26:36]} 27... Nc1 {[%clk 0:52:00]} 28. Nd4
{[%clk 0:26:44]} 28... Nxa2 {[%clk 0:45:22]} 29. Nxe6+ {[%clk 0:25:20]} 29...
fxe6 {[%clk 0:45:44]} 30. c4 {[%clk 0:25:04]} 30... Kf6 {[%clk 0:45:47]} 31. Kf2
{[%clk 0:24:23]} 31... c5 {[%clk 0:44:40]} 32. Ke3 {[%clk 0:22:20]} 32... Ke5
{[%clk 0:44:41]} 33. g3 {[%clk 0:18:39]} 33... Nb4 {[%clk 0:42:16]} 34. Be2
{[%clk 0:16:50]} 34... Nc6 {[%clk 0:40:35]} 35. Bd1 {[%clk 0:16:28]} 35... Ne7
{[%clk 0:37:06]} 36. Be2 {[%clk 0:15:06]} 36... Nc8 {[%clk 0:37:19]} 37. Bf1
{[%clk 0:13:22]} 37... Nd6 {[%clk 0:37:32]} 38. Bg2 {[%clk 0:10:54]} 38... b5
{[%clk 0:37:39]} 39. cxb5 {[%clk 0:10:36]} 39... axb5 {[%clk 0:37:04]} 40. Bf3
{[%clk 0:39:12]} 40... c4 {[%clk 1:06:11]} 41. bxc4 {[%clk 0:38:31]} 41... Nxc4+
{[%clk 1:04:31]} 42. Kd3 {[%clk 0:38:10]} 42... Kd6 {[%clk 1:04:19]} 43. Kd4
{[%clk 0:35:09]} 43... e5+ {[%clk 1:04:04]} 44. Kd3 {[%clk 0:33:59]} 44... Kc5
{[%clk 1:04:18]} 45. Bh5 {[%clk 0:33:36]} 45... Nd6 {[%clk 1:02:02]} 46. Bd1
{[%clk 0:31:30]} 46... b4 {[%clk 1:02:05]} 47. h4 {[%clk 0:30:58]} 47... Nb5
{[%clk 1:01:37]} 48. Bb3 {[%clk 0:28:27]} 48... Nd4 {[%clk 1:01:43]} 49. Bd5
{[%clk 0:28:25]} 49... Kb5 {[%clk 1:01:04]} 50. hxg5 {[%clk 0:27:30]} 50... hxg5
{[%clk 1:01:26]} 51. g4 {[%clk 0:27:18]} 51... Ka4 {[%clk 1:00:08]} 52. Kd2
{[%clk 0:26:58]} 52... Ka3 {[%clk 1:00:00]} 53. Bc4 {[%clk 0:25:48]} 53... b3
{[%clk 1:00:13]} 54. Kc1 {[%clk 0:25:59]} 54... Nf3 {[%clk 0:59:46]} 55. Bd3
{[%clk 0:24:23]} 55... b2+ {[%clk 0:59:56]} 56. Kd1 {[%clk 0:22:26]} 56... Ka2
{[%clk 1:00:05]} 57. Ke2 {[%clk 0:22:47]} 57... Nd4+ {[%clk 1:00:24]} 0-1

[Variant "Standard"]
[Site "Europe Echecs"]

[Event "Sunway Sitges Chess Festival"]
[Date "2024.12.21"]
[White "Swara Lakshmi S Nair"]
[Black "Nalbandyan, Vahan"]
[WhiteElo "1976"]
[BlackElo "2197"]
[Round "9.44"]
[Result "0-1"]
[TimeControl "40/5400+30:1800+30"]

1. e4 {[%clk 1:29:38]} 1... c6 {[%clk 1:30:40]} 2. d4 {[%clk 1:30:01]} 2... d5
{[%clk 1:30:28]} 3. Nc3 {[%clk 1:28:53]} 3... dxe4 {[%clk 1:30:39]} 4. Nxe4
{[%clk 1:29:21]} 4... Nf6 {[%clk 1:30:57]} 5. Nxf6+ {[%clk 1:29:46]} 5... exf6
{[%clk 1:31:20]} 6. c3 {[%clk 1:30:10]} 6... Bd6 {[%clk 1:31:30]} 7. Bd3 {[%clk
1:30:19]} 7... Na6 {[%clk 1:31:49]} 8. Qc2 {[%clk 1:24:04]} 8... h5 {[%clk
1:31:57]} 9. Ne2 {[%clk 1:22:17]} 9... Nc7 {[%clk 1:32:02]} 10. Bd2 {[%clk
0:53:33]} 10... Nd5 {[%clk 1:30:20]} 11. a3 {[%clk 0:51:32]} 11... Kf8 {[%clk
1:29:59]} 12. c4 {[%clk 0:37:47]} 12... Ne7 {[%clk 1:30:14]} 13. Be3 {[%clk
0:33:16]} 13... h4 {[%clk 1:29:43]} 14. h3 {[%clk 0:26:09]} 14... Be6 {[%clk
1:28:50]} 15. Nc3 {[%clk 0:23:30]} 15... f5 {[%clk 1:23:49]} 16. Ne2 {[%clk
0:16:14]} 16... Kg8 {[%clk 1:22:20]} 17. Rd1 {[%clk 0:14:40]} 17... b5 {[%clk
1:20:15]} 18. d5 {[%clk 0:13:35]} 18... cxd5 {[%clk 1:20:12]} 19. cxb5 {[%clk
0:06:31]} 19... Be5 {[%clk 1:13:01]} 20. f4 {[%clk 0:10:39]} 20... Bc7 {[%clk
1:12:15]} 21. Nd4 {[%clk 0:10:42]} 21... Rc8 {[%clk 1:09:51]} 22. Nxe6 {[%clk
0:08:49]} 22... fxe6 {[%clk 1:09:55]} 23. Qa4 {[%clk 0:07:08]} 23... Bb6 {[%clk
1:07:31]} 24. Bd4 {[%clk 0:-2:-39]} 24... g5 {[%clk 0:43:39]} 25. fxg5 {[%clk
0:03:52]} 25... Rh5 {[%clk 0:43:42]} 26. Be2 {[%clk 0:00:50]} 26... Rxg5 {[%clk
0:43:40]} 27. Bf3 {[%clk 0:01:17]} 27... Rc4 {[%clk 0:43:10]} 28. Qxc4 {[%clk
0:00:58]} 28... dxc4 {[%clk 0:43:34]} 29. Bf6 {[%clk 0:01:25]} 29... Qc7 {[%clk
0:43:54]} 30. Bxg5 {[%clk 0:01:12]} 30... Qg3+ {[%clk 0:44:03]} 31. Kd2 {[%clk
0:01:41]} 31... Qxg5+ {[%clk 0:44:19]} 32. Kc2 {[%clk 0:02:07]} 32... e5 {[%clk
0:43:17]} 33. Kb1 {[%clk 0:01:59]} 33... Bd4 {[%clk 0:42:53]} 34. Rhe1 {[%clk
0:02:07]} 34... Kf8 {[%clk 0:42:43]} 35. Re2 {[%clk 0:01:43]} 35... Qf6 {[%clk
0:42:14]} 36. Rc2 {[%clk 0:01:57]} 36... Qe6 {[%clk 0:40:00]} 37. Rdc1 {[%clk
0:00:59]} 37... e4 {[%clk 0:39:06]} 38. Be2 {[%clk 0:01:27]} 38... c3 {[%clk
0:39:11]} 39. bxc3 {[%clk 0:01:35]} 39... Be3 {[%clk 0:39:13]} 40. Rd1 {[%clk
0:31:58]} 40... Qb3+ {[%clk 1:07:35]} 41. Rb2 {[%clk 0:32:26]} 41... Qxc3 {[%clk
1:07:46]} 42. Rd8+ {[%clk 0:31:38]} 42... Kg7 {[%clk 1:08:09]} 43. Rd1 {[%clk
0:29:37]} 43... Bd4 {[%clk 1:08:07]} 44. Rdd2 {[%clk 0:30:04]} 44... Nd5 {[%clk
1:07:40]} 45. Ka2 {[%clk 0:30:07]} 45... Ne3 {[%clk 1:07:41]} 46. a4 {[%clk
0:29:27]} 46... Kf6 {[%clk 1:07:38]} 47. Kb1 {[%clk 0:29:18]} 47... Nc4 {[%clk
1:06:54]} 48. Bxc4 {[%clk 0:29:38]} 48... Qxc4 {[%clk 1:07:20]} 49. Rbc2 {[%clk
0:30:01]} 49... Qb4+ {[%clk 1:07:08]} 50. Kc1 {[%clk 0:30:21]} 50... Be3 {[%clk
1:07:29]} 51. Kd1 {[%clk 0:30:32]} 51... Bxd2 {[%clk 1:07:44]} 52. Rxd2 {[%clk
0:30:59]} 52... Qxa4+ {[%clk 1:08:08]} 53. Ke1 {[%clk 0:31:22]} 53... Ke5 {[%clk
1:08:24]} 54. Re2 {[%clk 0:31:30]} 54... Qa1+ {[%clk 1:08:37]} 55. Kf2 {[%clk
0:31:54]} 55... Kf4 {[%clk 1:09:02]} 0-1

[Variant "Standard"]
[Site "Europe Echecs"]